fUST/lending_fUST_20240806
["ID","MTS","AMOUNT","RATE_DAILY","PERIOD"]
[334270739,1722877860570,-500.0,0.00042191,31]
[334270740,1722877860579,-500.0,0.00042191,31]
[334270741,1722877860589,-500.0,0.00042191,31]
[334270742,1722877860598,-500.0,0.00042191,31]
[334270743,1722877860608,-269.85,0.00042191,31]
[334270744,1722877860617,-193.218559,0.00042191,14]
[334270745,1722877860626,-193.218559,0.00042191,14]
[334270746,1722877860635,-151.0,0.00042191,14]
[334270747,1722877860644,-500.0,0.00042191,31]
[334270748,1722877860654,-261.008641,0.00042191,14]
[334270749,1722877860663,-500.0,0.00042191,31]
[334270750,1722877860673,-151.0,0.00042191,14]
[334270751,1722877860682,-244.926806,0.00042191,14]
[334270752,1722877860691,-244.48,0.00042191,31]
[334270753,1722877860701,-723.96482747,0.00042191,31]
[334270754,1722877934615,151.0,0.0003,120]
[334270755,1722877934668,160.15094004,0.00021916,2]
[334270756,1722877935185,151.0,0.00032849,120]
[334270757,1722877935775,151.0,0.00035699,120]
[334270758,1722877944418,1075.48864695,0.00021916,2]
[334270759,1722877945057,294.2886399,0.000374,2]
[334270760,1722877951452,1763.49757797,0.00021916,2]
[334270761,1722877961448,209.81495165,0.00027,120]
[334270765,1722878731151,-174.71339,0.00014247,2]
[334270766,1722878731175,-240.4615154,0.00014247,2]
[334270767,1722878731197,-8.43615683,0.00019547,2]
[334270769,1722878826154,-250.0,0.00019817,2]
[334270770,1722878826175,-173.242028,0.00019926,2]
[334270771,1722878826197,-157.0,0.00019998,2]
[334270772,1722878826218,-9950.12776891,0.00019999,2]
[334270773,1722878826239,-2138.84815515,0.00019999,2]
[334270774,1722878826262,-4371.72997302,0.00019999,2]
[334270775,1722878826283,-1024.25282513,0.0002,2]
[334270776,1722878827109,-345.36985713,0.0002,2]
[334270777,1722878827130,-1357.88997402,0.0002028,2]
[334270778,1722878827152,-2823.96418368,0.00020611,2]
[334270779,1722878827514,-5119.09908296,0.00020611,2]
[334270780,1722878831104,-3891.83355338,0.00020611,2]
[334270781,1722878834119,-633.93382607,0.00020611,2]
[334270782,1722878852118,-928.7536126,0.00019547,2]
[334270783,1722878852139,-505.04087816,0.00020611,2]
[334270785,1722878900827,3150.0,0.000125,2]
[334270787,1722878923520,832.19886358,0.00025,120]
[334270793,1722878951119,-186.18601251,0.000191,2]
[334270794,1722878951140,-214.0,0.000195,10]
[334270795,1722878951161,-337.30968789,0.00019999,2]
[334270796,1722878951185,-154.79103211,0.00019999,2]
[334270797,1722878951206,-309.27320796,0.00019999,2]
[334270798,1722878951227,-209.20156569,0.0002028,2]
[334270799,1722878951248,-154.89925365,0.0002028,2]
[334270800,1722878951269,-156.83214814,0.0002028,2]
[334270801,1722878951289,-845.54644341,0.0002028,2]
[334270802,1722878951309,-249.0,0.0002061,2]
[334270803,1722878951331,-11926.12847575,0.00020611,2]
[334270804,1722878951352,-165.54898858,0.00020721,2]
[334270805,1722878951373,-197.78370797,0.00020899,2]
[334270806,1722878951394,-231.72965526,0.00020999,2]
[334270807,1722878951415,-150.0,0.00021,2]
[334270808,1722878951443,-7773.90428076,0.00021532,2]
[334270809,1722878951464,-194.54850496,0.00021642,2]
[334270810,1722878951484,-808.0041696,0.00021906,2]
[334270811,1722878951504,-5517.71667729,0.00021906,2]
[334270812,1722878951525,-1722.03311382,0.00023,2]
[334270813,1722878951545,-250.3410689,0.00023693,2]
[334270814,1722878951565,-200.0,0.00024658,15]
[334270815,1722878951585,-23.07353176,0.00025,2]
[334270818,1722878958182,-165.54898858,0.0002028,2]
[334270819,1722878958212,-250.3410689,0.00023693,2]
[334270820,1722878958234,-246.26530352,0.00025,2]
[334270821,1722878958257,-380.76437566,0.00025,2]
[334270822,1722878958281,-197.78370797,0.00025585,2]
[334270823,1722878958305,-402.3465429,0.00026589,2]
[334270824,1722878958327,-881.47696693,0.00026589,2]
[334270825,1722878958353,-154.09,0.000266,31]
[334270826,1722878958378,-154.09,0.000266,31]
[334270827,1722878958402,-154.09,0.000266,31]
[334270828,1722878958630,-154.09,0.000266,31]
[334270829,1722878958652,-160.54991199,0.0002661,2]
[334270830,1722878958674,-1965.23253652,0.00028,120]
[334270831,1722878958701,-151.0,0.0003,120]
[334270832,1722878958723,-151.0,0.0003,120]
[334270833,1722878958747,-197.78370797,0.00030271,2]
[334270834,1722878958774,-154.09,0.000305,31]
[334270835,1722878958799,-154.09,0.000305,31]
[334270836,1722878958824,-154.09,0.000305,31]
[334270837,1722878958849,-154.09,0.000305,31]
[334270838,1722878958872,-187.187898,0.00031507,120]
[334270839,1722878959100,-153.0,0.00033,2]
[334270840,1722878959123,-151.0,0.00033014,120]
[334270841,1722878959145,-153.0,0.00033151,2]
[334270842,1722878959167,-151.0,0.00034,120]
[334270843,1722878959197,-154.09,0.000344,31]
[334270844,1722878959222,-154.09,0.000344,31]
[334270845,1722878959246,-154.09,0.000344,31]
[334270846,1722878959270,-154.09,0.000344,31]
[334270847,1722878959292,-153.0,0.00034521,2]
[334270848,1722878959314,-197.78370797,0.00034957,2]
[334270849,1722878959336,-151.0,0.00036027,120]
[334270850,1722878959357,-153.0,0.00036247,2]
[334270852,1722878972121,-153.0,0.00037406,2]
[334270853,1722878972143,-153.0,0.00037406,2]
[334270854,1722878972163,-153.0,0.00037406,2]
[334270855,1722878972186,-207.0130742,0.00037406,2]
[334270856,1722879000908,339.5990981,0.00030303,4]
[334270857,1722879007853,633.8902483,0.00027446,2]
[334270858,1722879012063,402.3465429,0.00030303,4]
[334270877,1722879032899,-299.74,0.00031182,14]
[334270878,1722879032913,-629.0136126,0.00031182,7]
[334270879,1722879032924,-544.82435686,0.00031182,7]
[334270902,1722879038315,153.16,0.000266,31]
[334270903,1722879038379,153.16,0.000266,31]
[334270904,1722879039311,-17996.15561356,0.00031182,7]
[334270905,1722879039321,-154.63660298,0.00031182,2]
[334270906,1722879039330,-5000.0,0.00031182,4]
[334270907,1722879039339,-151.0,0.00038,120]
[334270908,1722879039349,-153.0,0.00038663,14]
[334270909,1722879039358,-3868.0,0.00039,120]
[334270910,1722879039367,-151.0,0.00039041,120]
[334270911,1722879039377,-197.78370797,0.00039642,2]
[334270912,1722879039387,-2273.51,0.0003968,3]
[334270913,1722879039396,-341.64062357,0.0003968,5]
[334270915,1722879039821,-3139.82896568,0.0003968,5]
[334270917,1722879039831,-76170.3828154,0.0003969,60]
[334270918,1722879039840,-3868.0,0.0004,120]
[334270920,1722879039850,-3868.0,0.0004,120]
[334270921,1722879039860,-200.0,0.0004,2]
[334270922,1722879039869,-1887.03832242,0.0004,30]
[334270923,1722879039879,-150.0,0.00040312,2]
[334270924,1722879039889,-507.0,0.00040312,2]
[334270925,1722879039901,-500.0,0.00040527,31]
[334270926,1722879039911,-598.51634345,0.00040527,31]
[334270927,1722879039920,-500.0,0.00040527,31]
[334270928,1722879039930,-500.0,0.00040527,31]
[334270929,1722879039939,-500.0,0.00040527,31]
[334270930,1722879039949,-500.0,0.00040527,31]
[334270931,1722879039959,-43912.24185314,0.00040528,2]
[334270932,1722879039969,-171.14677725,0.00040696,2]
[334270933,1722879039978,-171.14677722,0.00040796,2]
[334270934,1722879039988,-181445.60423287,0.000408,30]
[334270935,1722879040000,-166.15107441,0.00040802,2]
[334270936,1722879040033,153.16,0.000266,31]
[334270937,1722879040065,153.16,0.000266,31]
[334270940,1722879040096,153.16,0.000266,31]
[334270946,1722879040141,153.16,0.000266,31]
[334270950,1722879040182,153.16,0.000266,31]
[334270954,1722879040215,153.16,0.000305,31]
[334270958,1722879040246,153.16,0.000344,31]
[334270963,1722879040293,153.16,0.000305,31]
[334270964,1722879040323,153.16,0.000344,31]
[334270966,1722879040353,153.16,0.000305,31]
[334270968,1722879040402,153.16,0.000305,31]
[334270969,1722879040442,153.16,0.000344,31]
[334270971,1722879040455,-153.16,0.000383,31]
[334270972,1722879040465,-5136.21303696,0.00040802,2]
[334270973,1722879040475,-5302.36411137,0.00040878,2]
[334270974,1722879040484,-171.14677722,0.00040895,2]
[334270975,1722879040494,-3481.46958925,0.00040985,5]
[334270976,1722879040504,-171.14677722,0.00040995,2]
[334270977,1722879040514,-16326.24464348,0.00040995,5]
[334270978,1722879040530,-270.85517746,0.00040995,5]
[334270979,1722879040546,-21109.87848308,0.00040995,5]
[334270980,1722879040556,-2000.0,0.00040995,2]
[334270981,1722879040566,-1000.0,0.00041,41]
[334270982,1722879040575,-3868.0,0.00041,120]
[334270983,1722879040585,-3868.0,0.00041,120]
[334270984,1722879040597,-3989.26,0.00041,120]
[334270985,1722879040607,-153.0,0.00041079,14]
[334270986,1722879040617,-31333.2263032,0.00041085,5]
[334270987,1722879040627,-500.0,0.00041095,31]
[334270988,1722879040637,-500.0,0.00041095,31]
[334270989,1722879040647,-504.68847399,0.00041095,31]
[334270990,1722879040657,-500.0,0.00041095,31]
[334270991,1722879040670,-500.0,0.00041095,31]
[334270992,1722879040680,-500.0,0.00041095,31]
[334270993,1722879040690,-500.0,0.00041095,31]
[334270994,1722879040701,-500.0,0.00041095,31]
[334270995,1722879040711,-500.0,0.00041095,31]
[334270996,1722879040721,-500.0,0.00041095,31]
[334270997,1722879040731,-500.0,0.00041095,31]
[334270998,1722879040741,-500.0,0.00041095,31]
[334270999,1722879040750,-500.0,0.00041095,31]
[334271000,1722879040760,-500.0,0.00041095,31]
[334271001,1722879040769,-500.0,0.00041095,31]
[334271002,1722879040779,-237.03866892,0.00041095,31]
[334271003,1722879040789,-500.0,0.00041095,31]
[334271004,1722879040799,-342.33704408,0.00041095,31]
[334271005,1722879040808,-161.34650055,0.00041095,31]
[334271006,1722879040817,-500.0,0.00041095,31]
[334271007,1722879040827,-500.0,0.00041095,31]
[334271008,1722879040837,-500.0,0.00041095,31]
[334271009,1722879040847,-543.93460481,0.00041095,31]
[334271010,1722879040857,-500.0,0.00041095,31]
[334271011,1722879040867,-500.0,0.00041095,31]
[334271012,1722879040876,-221.60710906,0.00041095,31]
[334271013,1722879040886,-402.98591256,0.00041095,31]
[334271014,1722879040896,-500.0,0.00041095,31]
[334271015,1722879040906,-500.0,0.00041095,31]
[334271016,1722879040918,-500.0,0.00041095,31]
[334271017,1722879040928,-500.0,0.00041095,31]
[334271018,1722879040937,-500.0,0.00041095,31]
[334271019,1722879040948,-500.0,0.00041095,31]
[334271020,1722879040959,-500.0,0.00041095,31]
[334271021,1722879040969,-500.0,0.00041095,31]
[334271022,1722879040978,-500.0,0.00041095,31]
[334271023,1722879040990,-500.0,0.00041095,31]
[334271024,1722879041001,-500.0,0.00041095,31]
[334271025,1722879041011,-500.0,0.00041095,31]
[334271026,1722879041021,-500.0,0.00041095,31]
[334271027,1722879041031,-500.0,0.00041095,31]
[334271028,1722879041044,-527.52028041,0.00041095,31]
[334271029,1722879041054,-500.0,0.00041095,31]
[334271030,1722879041064,-500.0,0.00041095,31]
[334271031,1722879041073,-500.0,0.00041095,31]
[334271032,1722879041083,-500.0,0.00041095,31]
[334271033,1722879041093,-500.0,0.00041095,31]
[334271034,1722879041102,-500.0,0.00041095,31]
[334271035,1722879041112,-500.0,0.00041095,31]
[334271036,1722879041122,-500.0,0.00041095,31]
[334271037,1722879041132,-500.0,0.00041095,31]
[334271038,1722879041142,-500.0,0.00041095,31]
[334271039,1722879041151,-500.0,0.00041095,31]
[334271040,1722879041161,-500.0,0.00041095,31]
[334271041,1722879041171,-500.0,0.00041095,31]
[334271042,1722879041181,-500.0,0.00041095,31]
[334271043,1722879041190,-506.85806358,0.00041095,31]
[334271044,1722879041200,-174.34874103,0.00041095,31]
[334271045,1722879041209,-500.0,0.00041095,31]
[334271046,1722879041219,-500.0,0.00041095,31]
[334271047,1722879041229,-500.0,0.00041095,31]
[334271048,1722879041238,-500.0,0.00041095,31]
[334271049,1722879041248,-500.0,0.00041095,31]
[334271050,1722879041258,-500.0,0.00041095,31]
[334271051,1722879041267,-500.0,0.00041095,31]
[334271052,1722879041277,-500.0,0.00041095,31]
[334271053,1722879041288,-500.0,0.00041095,31]
[334271054,1722879041297,-500.0,0.00041095,31]
[334271055,1722879041309,-500.0,0.00041095,31]
[334271056,1722879041319,-500.0,0.00041095,31]
[334271057,1722879041329,-500.0,0.00041095,31]
[334271058,1722879041339,-514.59498789,0.00041095,31]
[334271059,1722879041348,-546.37185699,0.00041095,31]
[334271060,1722879041358,-500.0,0.00041095,31]
[334271061,1722879041367,-500.0,0.00041095,31]
[334271062,1722879041377,-500.0,0.00041095,31]
[334271063,1722879041386,-500.0,0.00041095,31]
[334271064,1722879041396,-500.0,0.00041095,31]
[334271065,1722879041406,-500.0,0.00041095,31]
[334271066,1722879041415,-500.0,0.00041095,31]
[334271067,1722879041426,-500.0,0.00041095,31]
[334271068,1722879041436,-500.0,0.00041095,31]
[334271069,1722879041446,-500.0,0.00041095,31]
[334271070,1722879041456,-2374.25,0.00041095,31]
[334271071,1722879041466,-500.0,0.00041095,31]
[334271072,1722879041476,-500.0,0.00041095,31]
[334271073,1722879041487,-1991.13,0.00041095,31]
[334271074,1722879041497,-500.0,0.00041095,31]
[334271075,1722879041507,-500.0,0.00041095,31]
[334271076,1722879041530,-500.0,0.00041095,31]
[334271077,1722879041540,-500.0,0.00041095,31]
[334271078,1722879041550,-500.0,0.00041095,31]
[334271079,1722879041559,-500.0,0.00041095,31]
[334271080,1722879041574,-500.0,0.00041095,31]
[334271081,1722879041583,-187.17371259,0.00041095,31]
[334271082,1722879041593,-500.0,0.00041095,31]
[334271083,1722879041602,-500.0,0.00041095,31]
[334271084,1722879041612,-500.0,0.00041095,31]
[334271085,1722879041621,-500.0,0.00041095,31]
[334271086,1722879041631,-500.0,0.00041095,31]
[334271087,1722879041641,-500.0,0.00041095,31]
[334271088,1722879041650,-500.0,0.00041095,31]
[334271089,1722879041660,-500.0,0.00041095,31]
[334271090,1722879041669,-500.0,0.00041095,31]
[334271091,1722879041679,-500.0,0.00041095,31]
[334271092,1722879041689,-500.0,0.00041095,31]
[334271093,1722879041698,-500.0,0.00041095,31]
[334271094,1722879041707,-500.0,0.00041095,31]
[334271095,1722879041716,-500.0,0.00041095,31]
[334271096,1722879041726,-500.0,0.00041095,31]
[334271097,1722879041736,-500.0,0.00041095,31]
[334271098,1722879041745,-500.0,0.00041095,31]
[334271099,1722879041755,-500.0,0.00041095,31]
[334271100,1722879041764,-500.0,0.00041095,31]
[334271101,1722879041773,-500.0,0.00041095,31]
[334271102,1722879041783,-500.0,0.00041095,31]
[334271103,1722879041792,-500.0,0.00041095,31]
[334271104,1722879041802,-500.0,0.00041095,31]
[334271105,1722879041812,-500.0,0.00041095,31]
[334271106,1722879041821,-500.0,0.00041095,31]
[334271107,1722879041832,-500.0,0.00041095,31]
[334271108,1722879041841,-500.0,0.00041095,31]
[334271109,1722879041851,-156.27133776,0.00041095,31]
[334271110,1722879041860,-500.0,0.00041095,31]
[334271111,1722879041870,-500.0,0.00041095,31]
[334271112,1722879041880,-500.0,0.00041095,31]
[334271113,1722879041890,-500.0,0.00041095,31]
[334271114,1722879041900,-500.0,0.00041095,31]
[334271115,1722879041914,-500.0,0.00041095,31]
[334271116,1722879041923,-500.0,0.00041095,31]
[334271117,1722879041932,-329.04185234,0.00041095,31]
[334271118,1722879041942,-500.0,0.00041095,31]
[334271119,1722879041952,-500.0,0.00041095,31]
[334271120,1722879041962,-500.0,0.00041095,31]
[334271121,1722879041971,-500.0,0.00041095,31]
[334271122,1722879041981,-500.0,0.00041095,31]
[334271123,1722879041992,-508.87286016,0.00041095,20]
[334271124,1722879042002,-475.19079176,0.00041095,31]
[334271125,1722879042012,-500.0,0.00041095,31]
[334271126,1722879042022,-500.0,0.00041095,31]
[334271127,1722879042033,-500.0,0.00041095,31]
[334271128,1722879042043,-500.0,0.00041095,31]
[334271129,1722879042055,-500.0,0.00041095,31]
[334271130,1722879042064,-500.0,0.00041095,31]
[334271131,1722879042074,-500.0,0.00041095,31]
[334271132,1722879042084,-500.0,0.00041095,31]
[334271133,1722879042093,-500.0,0.00041095,31]
[334271134,1722879042103,-500.0,0.00041095,31]
[334271135,1722879042113,-500.0,0.00041095,31]
[334271136,1722879042123,-500.0,0.00041095,31]
[334271137,1722879042134,-500.0,0.00041095,31]
[334271138,1722879042144,-500.0,0.00041095,31]
[334271139,1722879042153,-500.0,0.00041095,31]
[334271140,1722879042163,-500.0,0.00041095,31]
[334271141,1722879042173,-500.0,0.00041095,31]
[334271142,1722879042182,-500.0,0.00041095,31]
[334271143,1722879042193,-500.0,0.00041095,31]
[334271144,1722879042204,-500.0,0.00041095,31]
[334271145,1722879042214,-227.27170442,0.00041095,31]
[334271146,1722879042223,-500.0,0.00041095,31]
[334271147,1722879042392,-500.0,0.00041095,31]
[334271148,1722879042403,-500.0,0.00041095,31]
[334271149,1722879042412,-500.0,0.00041095,31]
[334271150,1722879042422,-500.0,0.00041095,31]
[334271151,1722879042431,-500.0,0.00041095,31]
[334271152,1722879042441,-500.0,0.00041095,31]
[334271153,1722879042450,-500.0,0.00041095,31]
[334271154,1722879042459,-500.0,0.00041095,31]
[334271155,1722879042469,-500.0,0.00041095,31]
[334271156,1722879042478,-3935.42,0.00041095,31]
[334271157,1722879042488,-500.0,0.00041095,31]
[334271158,1722879042497,-500.0,0.00041095,31]
[334271159,1722879042506,-500.0,0.00041095,31]
[334271160,1722879042515,-500.0,0.00041095,21]
[334271161,1722879042524,-500.0,0.00041095,31]
[334271162,1722879042534,-500.0,0.00041095,31]
[334271163,1722879042543,-500.0,0.00041095,31]
[334271164,1722879042553,-500.0,0.00041095,31]
[334271165,1722879042562,-500.0,0.00041095,31]
[334271166,1722879042572,-500.0,0.00041095,31]
[334271167,1722879042581,-500.0,0.00041095,31]
[334271168,1722879042590,-500.0,0.00041095,31]
[334271169,1722879042599,-500.0,0.00041095,31]
[334271170,1722879042609,-500.0,0.00041095,31]
[334271171,1722879042619,-500.0,0.00041095,31]
[334271172,1722879042628,-500.0,0.00041095,31]
[334271173,1722879042638,-345.75199749,0.00041095,31]
[334271174,1722879042647,-500.0,0.00041095,31]
[334271175,1722879042657,-500.0,0.00041095,31]
[334271176,1722879042666,-500.0,0.00041095,31]
[334271177,1722879042675,-501.35822863,0.00041095,31]
[334271178,1722879042685,-500.0,0.00041095,31]
[334271180,1722879042694,-421.4717032,0.00041095,31]
[334271181,1722879042703,-500.0,0.00041095,31]
[334271182,1722879042712,-500.0,0.00041095,2]
[334271183,1722879042721,-520.49536738,0.00041095,31]
[334271184,1722879042731,-500.0,0.00041095,31]
[334271185,1722879042741,-500.0,0.00041095,31]
[334271186,1722879042750,-500.0,0.00041095,20]
[334271187,1722879042759,-500.0,0.00041095,31]
[334271188,1722879042768,-500.0,0.00041095,31]
[334271189,1722879042777,-500.0,0.00041095,31]
[334271190,1722879042787,-506.98185039,0.00041095,31]
[334271191,1722879042796,-500.0,0.00041095,31]
[334271192,1722879042806,-500.0,0.00041095,31]
[334271193,1722879042815,-500.0,0.00041095,31]
[334271194,1722879042824,-500.0,0.00041095,31]
[334271195,1722879042834,-500.0,0.00041095,31]
[334271196,1722879042844,-500.0,0.00041095,31]
[334271197,1722879042853,-506.42729051,0.00041095,31]
[334271198,1722879042863,-487.38512965,0.00041095,31]
[334271199,1722879042872,-500.0,0.00041095,31]
[334271200,1722879042881,-500.0,0.00041095,31]
[334271201,1722879042891,-416.08032361,0.00041095,31]
[334271202,1722879042903,-500.0,0.00041095,31]
[334271203,1722879042919,-500.0,0.00041095,31]
[334271204,1722879042929,-500.0,0.00041095,31]
[334271205,1722879042939,-500.0,0.00041095,31]
[334271206,1722879042951,-500.0,0.00041095,31]
[334271207,1722879042960,-500.0,0.00041095,31]
[334271208,1722879042970,-500.0,0.00041095,31]
[334271209,1722879042980,-500.0,0.00041095,31]
[334271210,1722879042990,-500.0,0.00041095,31]
[334271211,1722879043002,-518.52,0.00041095,31]
[334271212,1722879043012,-500.0,0.00041095,31]
[334271213,1722879043021,-500.0,0.00041095,31]
[334271214,1722879043031,-500.0,0.00041095,31]
[334271215,1722879043041,-500.0,0.00041095,31]
[334271216,1722879043050,-503.60090327,0.00041095,31]
[334271217,1722879043060,-500.0,0.00041095,31]
[334271218,1722879043070,-505.2888289,0.00041095,31]
[334271219,1722879043079,-500.0,0.00041095,31]
[334271220,1722879043089,-500.0,0.00041095,31]
[334271221,1722879043099,-500.0,0.00041095,31]
[334271222,1722879043109,-500.0,0.00041095,31]
[334271223,1722879043119,-500.0,0.00041095,31]
[334271224,1722879043129,-500.0,0.00041095,31]
[334271225,1722879043139,-500.0,0.00041095,31]
[334271226,1722879043149,-500.0,0.00041095,31]
[334271227,1722879043158,-502.19804139,0.00041095,31]
[334271228,1722879043168,-500.0,0.00041095,31]
[334271229,1722879043178,-500.0,0.00041095,31]
[334271230,1722879043187,-500.0,0.00041095,31]
[334271231,1722879043197,-500.0,0.00041095,31]
[334271232,1722879043207,-347.30565168,0.00041095,31]
[334271233,1722879043216,-500.0,0.00041095,31]
[334271234,1722879043226,-500.0,0.00041095,31]
[334271235,1722879043235,-500.0,0.00041095,31]
[334271236,1722879043245,-500.0,0.00041095,31]
[334271237,1722879043254,-500.0,0.00041095,31]
[334271238,1722879043270,-500.0,0.00041095,31]
[334271239,1722879043280,-500.0,0.00041095,31]
[334271240,1722879043289,-500.0,0.00041095,31]
[334271241,1722879043299,-500.0,0.00041095,31]
[334271242,1722879043309,-150.0,0.00041095,31]
[334271243,1722879043319,-500.0,0.00041095,31]
[334271244,1722879043328,-500.0,0.00041095,31]
[334271245,1722879043338,-500.0,0.00041095,31]
[334271246,1722879043349,-500.0,0.00041095,31]
[334271247,1722879043359,-275.66109632,0.00041095,31]
[334271248,1722879043368,-500.0,0.00041095,31]
[334271249,1722879043377,-500.0,0.00041095,31]
[334271250,1722879043387,-500.0,0.00041095,31]
[334271251,1722879043396,-638.18512703,0.00041095,31]
[334271252,1722879043405,-514.0282447,0.00041095,31]
[334271253,1722879043415,-500.0,0.00041095,31]
[334271254,1722879043425,-500.0,0.00041095,30]
[334271255,1722879043434,-500.0,0.00041095,31]
[334271256,1722879043444,-500.0,0.00041095,31]
[334271257,1722879043454,-500.0,0.00041095,31]
[334271258,1722879043463,-500.0,0.00041095,31]
[334271259,1722879043472,-573.47917358,0.00041095,31]
[334271260,1722879043481,-500.0,0.00041095,31]
[334271261,1722879043490,-500.0,0.00041095,31]
[334271262,1722879043499,-500.0,0.00041095,31]
[334271263,1722879043509,-500.0,0.00041095,31]
[334271264,1722879043519,-500.0,0.00041095,31]
[334271265,1722879043528,-500.0,0.00041095,31]
[334271266,1722879043537,-500.0,0.00041095,31]
[334271267,1722879043547,-500.0,0.00041095,31]
[334271268,1722879043557,-504.90918618,0.00041095,31]
[334271269,1722879043566,-500.0,0.00041095,31]
[334271270,1722879043575,-500.0,0.00041095,31]
[334271271,1722879043585,-500.0,0.00041095,31]
[334271272,1722879043594,-500.0,0.00041095,31]
[334271273,1722879043603,-500.0,0.00041095,31]
[334271274,1722879043612,-500.0,0.00041095,31]
[334271275,1722879043621,-500.0,0.00041095,31]
[334271276,1722879043630,-500.0,0.00041095,31]
[334271277,1722879043640,-500.0,0.00041095,31]
[334271278,1722879043650,-500.0,0.00041095,31]
[334271279,1722879043660,-500.0,0.00041095,31]
[334271280,1722879043670,-59.33292919,0.00041095,31]
[334271281,1722879043717,153.16,0.000344,31]
[334271282,1722879043754,153.16,0.000344,31]
[334271283,1722879043851,153.16,0.000305,31]
[334271284,1722879043907,153.16,0.000305,31]
[334271285,1722879043965,153.16,0.000344,31]
[334271286,1722879044080,-153.16,0.000383,31]
[334271287,1722879044090,-153.16,0.000383,31]
[334271288,1722879044101,-153.16,0.000383,31]
[334271289,1722879044111,-440.66707081,0.00041095,31]
[334271290,1722879044121,-500.0,0.00041095,31]
[334271291,1722879044131,-500.0,0.00041095,31]
[334271292,1722879044141,-500.0,0.00041095,31]
[334271293,1722879044152,-500.0,0.00041095,31]
[334271294,1722879044162,-393.09222234,0.00041095,31]
[334271295,1722879044268,-106.90777766,0.00041095,31]
[334271296,1722879044278,-500.0,0.00041095,31]
[334271297,1722879044287,-339.23949899,0.00041095,31]
[334271298,1722879044300,-160.76050101,0.00041095,31]
[334271299,1722879044310,-500.0,0.00041095,31]
[334271300,1722879044320,-627.87,0.00041095,31]
[334271301,1722879044330,-500.0,0.00041095,31]
[334271302,1722879044339,-500.0,0.00041095,31]
[334271303,1722879044348,-500.0,0.00041095,31]
[334271304,1722879044358,-500.0,0.00041095,31]
[334271305,1722879044367,-500.0,0.00041095,31]
[334271306,1722879044376,-500.0,0.00041095,31]
[334271307,1722879044385,-500.0,0.00041095,30]
[334271309,1722879044395,-500.0,0.00041095,31]
[334271311,1722879044404,-500.0,0.00041095,31]
[334271313,1722879044413,-221.92882327,0.00041095,31]
[334271314,1722879044422,-500.0,0.00041095,31]
[334271316,1722879044431,-513.69850498,0.00041095,31]
[334271318,1722879044440,-500.0,0.00041095,31]
[334271320,1722879044451,-500.0,0.00041095,31]
[334271322,1722879044460,-500.0,0.00041095,31]
[334271323,1722879044469,-506.39636042,0.00041095,31]
[334271324,1722879044479,-500.0,0.00041095,31]
[334271325,1722879044488,-500.0,0.00041095,31]
[334271326,1722879044497,-500.0,0.00041095,31]